[Event "Chile-ch Women 2019"]
[Site "Santiago Las Condes"]
[Date "2019.02.16"]
[Round "7.7"]
[White "Yanez Araya, Josefa"]
[Black "Urrutia Cordova, Camila"]
[Result "0-1"]
[ECO "E60"]
[WhiteElo "1688"]
[BlackElo "1694"]
[Annotator "NA"]
[PlyCount "106"]
[EventDate "2019.02.12"]
[EventType "swiss"]
[EventCountry "CHI"]
[SourceTitle "playchess.com"]
[Source "ChessBase"]
[SourceQuality "1"]
[TimeControl "5400+30"]

1. d4 {[%emt 0:00:00]} Nf6 {[%emt 0:00:00]} 2. Nf3 {[%emt 0:00:04]} g6 {[%emt 0:00:00]} 3. g3 {[%emt 0:00:29]} Bg7 {[%emt 0:00:00]} 4. Bg2 {[%emt 0:00:09]} d6 {[%emt 0:00:00]} 5. O-O {[%emt 0:00:29]} O-O {[%emt 0:00:05]} 6. b3 {[%emt 0:01:06]} c5 {[%emt 0:01:36]} 7. Bb2 {[%emt 0:01:49]} Nc6 {[%emt 0:00:34]} 8. c4 {[%emt 0:01:41]} Nd7 {[%emt 0:03:48]} 9. Qd2 {[%emt 0:02:28]} Qa5 {[%emt 0:06:50]} 10. Rd1 {[%emt 0:04:34]} Rb8 {[%emt 0:05:30]} 11. Bc3 {[%emt 0:06:27]} Qc7 {[%emt 0:02:55]} 12. d5 {[%emt 0:07:37]} Nce5 {[%emt 0:01:25]} 13. Nxe5 {[%emt 0:01:18]} Nxe5 {[%emt 0:03:35]} 14. f4 {[%emt 0:00:52]} Ng4 {[%emt 0:00:28]} 15. Bxg7 {[%emt 0:00:49]} Kxg7 {[%emt 0:00:22]} 16. Nc3 {[%emt 0:01:25]} a6 {[%emt 0:03:28]} 17. a4 {[%emt 0:01:30]} Qb6 {[%emt 0:01:28]} 18. Rab1 {[%emt 0:00:43]} Qb4 {[%emt 0:02:34]} 19. h3 {[%emt 0:04:07]} Nh6 {[%emt 0:04:35]} 20. e4 {[%emt 0:01:50]} Bd7 {[%emt 0:00:40]} 21. Qe3 {[%emt 0:06:32]} b5 {[%emt 0:00:51]} 22. axb5 {[%emt 0:04:22]} axb5 {[%emt 0:00:06]} 23. Bf1 {[%emt 0:05:29]} bxc4 {[%emt 0:06:55]} 24. bxc4 {[%emt 0:00:14]} Qa5 {[%emt 0:00:05]} 25. Ra1 {[%emt 0:01:19]} Qc7 {[%emt 0:00:18]} 26. Rdb1 {[%emt 0:04:28]} Rxb1 {[%emt 0:10:45]} 27. Rxb1 {[%emt 0:00:05]} Rb8 {[%emt 0:00:47]} 28. f5 {[%emt 0:06:17]} Rxb1 {[%emt 0:02:02]} 29. Nxb1 {[%emt 0:00:06]} Qa5 {[%emt 0:04:41]} 30. fxg6 {[%emt 0:01:35]} hxg6 {[%emt 0:00:32]} 31. Nd2 {[%emt 0:09:00]} Qa1 {[%emt 0:01:11]} 32. g4 {[%emt 0:06:31]} Qe5 {[%emt 0:01:38]} 33. Qf2 {[%emt 0:07:00]} Ng8 {[%emt 0:04:00]} 34. Bg2 {[%emt 0:00:42]} Qc3 {[%emt 0:02:11]} 35. Bf1 {[%emt 0:02:00]} Nf6 {[%emt 0:01:14]} 36. Bg2 {[%emt 0:02:29]} Bc8 {[%emt 0:02:49]} 37. Qe1 {[%emt 0:02:22]} Nd7 {[%emt 0:02:18]} 38. Kf2 {[%emt 0:04:47]} Ne5 {[%emt 0:00:41]} 39. Qe3 {[%emt 0:01:09]} Qc2 {[%emt 0:00:40]} 40. Bf1 {[%emt 0:00:38]} Bxg4 {[%emt 0:02:08]} 41. Kg3 {[%emt 0:00:40]} Bh5 {[%emt 0:02:37]} 42. Be2 {[%emt 0:00:42]} Bxe2 {[%emt 0:00:28]} 43. Qxe2 {[%emt 0:00:03]} Qc3+ {[%emt 0:00:16]} 44. Kg2 {[%emt 0:00:28]} g5 {[%emt 0:02:20]} 45. Nf3 {[%emt 0:01:41]} Nxf3 {[%emt 0:02:26]} 46. Qxf3 {[%emt 0:00:03]} Qxc4 {[%emt 0:00:11]} 47. Qg4 {[%emt 0:00:29]} Qc2+ {[%emt 0:00:34]} 48. Kf1 {[%emt 0:00:29]} Qc1+ {[%emt 0:00:28]} 49. Kf2 {[%emt 0:00:58]} Qd2+ {[%emt 0:01:28]} 50. Qe2 {[%emt 0:01:23]} Qxe2+ {[%emt 0:01:03]} 51. Kxe2 {[%emt 0:00:02]} Kf6 {[%emt 0:00:07]} 52. Ke3 {[%emt 0:00:41]} Ke5 {[%emt 0:00:05]} 53. Kd3 {[%emt 0:00:18]} Kf4 {[%emt 0:00:15] Kd4 [%clk 0:00:00] Ke5+} 0-1

[Event "Chile-ch Women 2019"]
[Site "Santiago Las Condes"]
[Date "2019.02.17"]
[Round "8.1"]
[White "Gomez Barrera, Javiera Belen"]
[Black "Abarca Gonzalez, Damaris"]
[Result "0-1"]
[ECO "C54"]
[WhiteElo "1990"]
[BlackElo "2039"]
[Annotator "NA RC"]
[PlyCount "142"]
[EventDate "2019.02.12"]
[EventType "swiss"]
[EventCountry "CHI"]
[SourceTitle "playchess.com"]
[Source "ChessBase"]
[SourceQuality "1"]
[TimeControl "5400+30"]

{[%evp 18,126,18,32767,32767,32767,32767,23,58,24,26,24,31,18,57,54,50,32767,44,43,39,0,0,-9,-9,-16,36,3,21,20,87,75,70,70,148,118,119,0,139,0,32767,32767,32767,32767,32767,32767,32767,198,190,202,322,249,285,285,277,146,144,156,162,108,172,64,163,112,125,71,63,0,128,0,127,11,7,0,116,97,115,0,8,2,14,-7,0,-8,0,0,0,0,0,-20,-18,-35,-38,-50,-44,-84,-81,-204,-156,-156,-52,-60,-47,-65,0,0,0,-16,0,32767,0]} 1. e4 {[%emt 0:00:00]} e5 {[%emt 0:00:00]} 2. Nf3 {[%emt 0:00:00]} Nc6 {[%emt 0:00:00]} 3. Bc4 {[%emt 0:00:00]} Bc5 {[%emt 0:00:00]} 4. c3 {[%emt 0:00:22]} Nf6 {[%emt 0:00:00]} 5. d3 {[%emt 0:00:08]} O-O {[%emt 0:00:46]} 6. O-O {[%emt 0:01:29]} d6 {[%emt 0:00:32]} 7. Bb3 {[%emt 0:00:15]} a6 {[%emt 0:06:28]} 8. Nbd2 {[%emt 0:07:55]} Ba7 {[%emt 0:03:15]} 9. h3 {[%emt 0:00:32]} Be6 {[%emt 0:03:44]} 10. Re1 {[%emt 0:03:59] C54: Giuoco Piano: 4 c3 Nf6, main lines with 5 d4 and 5 d3} (10. Bc2 d5 11. Ng5 Qe8 12. Ndf3 Rd8 13. Nxe6 fxe6 14. Qe2 Nh5 15. Kh2 Nf4 16. Bxf4 Rxf4 17. Rae1 Qf7 {½-½ (42) Aronian,L (2764)-Kramnik,V (2792) Paris 2018}) 10... Bxb3 {[%emt 0:08:26]} 11. Qxb3 {[%emt 0:11:16]} b5 {[%emt 0:09:28]} 12. Nf1 {[%emt 0:25:36]} Nh5 {[%emt 0:07:52]} 13. Bg5 {[%emt 0:23:14]} Qd7 {[%emt 0:01:48]} 14. Rad1 {[%emt 0:14:16]} h6 {[%emt 0:03:44]} 15. Be3 {[%emt 0:01:48] [#]} Kh8 $146 {[%emt 0:05:03]} ({Predecessor:} 15... Bxe3 16. Nxe3 Nf4 17. d4 Rfe8 {0-1 (62) Lu,S (2636)-Tabatabaei,M (2587) Makati 2018}) 16. Bxa7 {[%emt 0:02:20]} Rxa7 {[%emt 0:00:12]} 17. Ne3 {[%emt 0:00:07]} Qe6 {[%emt 0:08:32]} 18. Qxe6 {[%emt 0:03:38]} fxe6 {[%emt 0:00:02]} 19. Nh4 {[%emt 0:01:29]} Kh7 {[%emt 0:00:45]} 20. g3 {[%emt 0:00:04]} Raa8 {[%emt 0:00:39]} 21. Rd2 {[%emt 0:00:30]} b4 {[%emt 0:01:08]} (21... Nf6 $11) 22. Rc1 {[%emt 0:01:28]} g5 {[%emt 0:06:47]} 23. Nhg2 $1 {[%emt 0:00:02]} ({Don't play} 23. cxb4 Nd4 $17) 23... Rf7 {[%emt 0:00:40]} (23... b3 $11 {remains equal.}) 24. cxb4 {[%emt 0:00:46]} Nd4 {[%emt 0:00:01]} 25. Ne1 {[%emt 0:00:14]} Rb8 {[%emt 0:00:56] [#]} ({Black should try} 25... a5) 26. N3c2 $2 {[%emt 0:00:20]} Nc6 {[%emt 0:01:24]} 27. Ne3 {[%emt 0:00:01]} ({White should try} 27. Na1 $16 Rb6 28. Rdc2 Nxb4 29. Rxc7 Rxc7 30. Rxc7+ Kg6 31. a3) 27... Nd4 {[%emt 0:00:19]} 28. N3c2 {[%emt 0:00:01]} Nc6 {[%emt 0:00:08]} 29. Ne3 {[%emt 0:00:05]} Nd4 {[%emt 0:00:08] [#]} 30. Rc4 $1 $16 {[%emt 0:02:31]} c6 {[%emt 0:01:16]} 31. N3c2 {[%emt 0:00:27]} d5 {[%emt 0:00:27]} 32. exd5 {[%emt 0:00:36]} cxd5 {[%emt 0:02:36]} 33. Rc5 {[%emt 0:00:09]} Nb5 {[%emt 0:05:55]} (33... Nxc2 {might work better.} 34. Nxc2 (34. Rdxc2 Rxb4 35. Rc6 Ng7 $16) 34... Rb6) 34. a4 {[%emt 0:00:13]} Nc7 {[%emt 0:00:14]} 35. Re2 {[%emt 0:00:35]} Nf6 {[%emt 0:01:30]} 36. f3 {[%emt 0:00:58]} (36. Rc6 $18) 36... Rb7 {[%emt 0:03:04]} 37. Rc6 {[%emt 0:00:14]} Nd7 {[%emt 0:01:59]} 38. Kg2 {[%emt 0:00:49]} ({Better is} 38. Rd6 $18) 38... Re7 {[%emt 0:02:01]} (38... d4 $16) 39. a5 {[%emt 0:00:28]} (39. d4 $18) 39... d4 $11 {[%emt 0:02:02]} (39... Nb8 $16 40. Rb6 Rxb6 41. axb6 Nb5) 40. Kf2 {[%emt 0:00:30]} Kg7 {[%emt 0:00:49]} 41. Ng2 {[%emt 0:00:25]} ({Better is} 41. Rd6 $16) 41... Rf7 {[%emt 0:03:34]} 42. Nge1 {[%emt 0:00:12]} (42. Kg1 $16) 42... Re7 {[%emt 0:00:18]} 43. Kg2 {[%emt 0:00:22]} Rf7 $1 {[%emt 0:00:38]} 44. Rc4 {[%emt 0:00:56]} Nd5 {[%emt 0:00:36]} 45. Rc6 {[%emt 0:00:23] Double Attack} Nc7 {[%emt 0:00:07]} 46. Na3 {[%emt 0:00:42]} Nb8 {[%emt 0:04:02]} 47. Rc4 {[%emt 0:00:20]} (47. Rc1 $16) 47... Kf6 {[%emt 0:00:43]} 48. Nec2 {[%emt 0:00:40]} Nd5 {[%emt 0:00:39]} 49. Nb1 {[%emt 0:00:23]} Rfc7 {[%emt 0:01:14]} 50. Rxc7 {[%emt 0:00:36]} Nxc7 {[%emt 0:00:05]} 51. Nd2 {[%emt 0:00:12]} Nc6 {[%emt 0:01:57]} 52. Ne4+ {[%emt 0:00:46]} Ke7 $1 {[%emt 0:00:02]} 53. Nc5 {[%emt 0:00:33]} Rb5 {[%emt 0:00:30]} 54. Na3 {[%emt 0:00:31]} Rxb4 {[%emt 0:00:33]} 55. Nc4 {[%emt 0:00:24]} Rb5 {[%emt 0:01:06]} 56. Na4 {[%emt 0:00:30]} Nd5 {[%emt 0:01:41]} 57. Kf2 {[%emt 0:00:37]} (57. Nab6 $17) 57... Nxa5 {[%emt 0:01:41]} 58. Nxe5 {[%emt 0:00:27] [#]} Ne3 {[%emt 0:00:26]} (58... Nb3 $1 $17 59. Kg1 Ne3 60. Nc6+ Kd6 61. Nxd4 {[%mdl 64] Remove Defender} Nxd4 62. Rxe3 Rb4) 59. Ng4 {[%emt 0:00:34]} Nxg4+ {[%emt 0:00:29]} 60. hxg4 {[%emt 0:00:06]} Nb7 {[%emt 0:00:22]} (60... Kd6 $15 61. Rc2 Nc6) 61. Rc2 {[%emt 0:00:51]} Kd6 {[%emt 0:00:39]} 62. Rc4 {[%emt 0:00:25]} e5 {[%emt 0:00:12]} 63. f4 {[%emt 0:00:38]} gxf4 $11 {[%emt 0:03:32]} 64. gxf4 {[%emt 0:00:01]} Na5 {[%emt 0:00:57]} 65. fxe5+ {[%emt 0:00:47]} Kxe5 {[%emt 0:01:03]} 66. Rc7 {[%emt 0:00:40]} Kf4 {[%emt 0:00:06]} 67. Rd7 {[%emt 0:00:32]} Rb4 {[%emt 0:00:12]} 68. Nc5 {[%emt 0:00:08]} Rxb2+ {[%emt 0:00:12]} 69. Ke1 {[%emt 0:00:23]} Kxg4 {[%emt 0:00:40]} 70. Rxd4+ {[%emt 0:00:16]} Kf3 {[%emt 0:00:44]} 71. Nxa6 {[%emt 0:01:13]} Nb3 {[%emt 0:00:01]} 0-1

[Event "Chile-ch Women 2019"]
[Site "Santiago Las Condes"]
[Date "2019.02.16"]
[Round "8.2"]
[White "Arbunic Castro, Giovanna"]
[Black "Reyes Jara, Paula"]
[Result "1/2-1/2"]
[ECO "E73"]
[WhiteElo "1995"]
[BlackElo "1955"]
[Annotator "NA RC"]
[PlyCount "129"]
[EventDate "2019.02.12"]
[EventType "swiss"]
[EventCountry "CHI"]
[SourceTitle "playchess.com"]
[Source "ChessBase"]
[SourceQuality "1"]
[TimeControl "5400+30"]

{[%evp 23,129,-252,-153,-225,-50,-80,-81,-83,-57,-424,-405,32767,-410,-421,32767,32767,32767,-404,-389,-405,-402,-401,-405,-426,-381,-386,-398,-418,-344,-354,-375,-368,-387,-401,-364,-348,-374,-511,-541,32767,32767,32767,-603,-636,-691,-700,32767,-589,-660,-652,-487,-689,-663,-830,-765,-743,268,243,260,50,44,-8,165,0,495,0,0,0,0,-328,-448,-1384,-22,-299,-324,-1429,-510,-302,0,0,0,0,0,8,0,0,0,0,0,0,0,0,0,0,0,0,0,0,0,0,32767,0,0,0,32767,0,0,0]} 1. d4 {[%emt 0:00:00]} Nf6 {[%emt 0:00:00]} 2. c4 {[%emt 0:00:00]} g6 {[%emt 0:00:00]} 3. Nc3 {[%emt 0:00:00]} Bg7 {[%emt 0:00:00]} 4. e4 {[%emt 0:00:00]} d6 {[%emt 0:00:05]} 5. Be2 {[%emt 0:00:06]} O-O {[%emt 0:00:31]} 6. Bg5 {[%emt 0:00:12]} Nc6 {[%emt 0:08:26]} 7. Qd2 {[%emt 0:10:34] E73: King's Indian: Averbakh Variation without 6...c5} (7. Nf3 Bg4 8. d5 Bxf3 9. Bxf3 Ne5 10. Be2 c6 11. O-O Rc8 12. Qb3 Qc7 13. Rac1 a6 14. Be3 Ned7 15. f3 cxd5 16. cxd5 {1-0 (65) Smirin,I (2658)-Petrosian,T (2625) Minsk 2015}) 7... e5 {[%emt 0:02:44]} 8. dxe5 {[%emt 0:00:46]} Nxe5 {[%emt 0:01:06]} 9. f3 $146 {[%emt 0:08:49]} ({Predecessor:} 9. Rd1 Qe8 10. c5 Qc6 11. Qf4 Nfd7 12. Be7 Qxc5 13. Bxf8 Nxf8 14. Qd2 Be6 {½-½ (61) Morss,M (2102)-Llorente Alvarez,J (2122) LSS email 2008}) 9... Be6 {[%emt 0:01:38]} 10. Nd5 {[%emt 0:01:05]} c6 {[%emt 0:07:54]} 11. Ne3 {[%emt 0:22:48]} Qb6 {[%emt 0:01:36]} 12. O-O-O {[%emt 0:02:29]} (12. Rc1 $17 {is a better defense.}) 12... Qa6 {[%emt 0:07:21]} 13. Kb1 {[%emt 0:10:43] [#]} (13. a3 $17) 13... Nxc4 $2 {[%emt 0:02:55]} ({Not} 13... Bxc4 14. Nxc4 Nxc4 15. Qd4 $15) (13... b5 $1 $19 14. Bf4 (14. Qxd6 $2 Nxc4 15. Bxc4 bxc4 $19) 14... Nh5 15. Bxe5 dxe5) 14. Nxc4 {[%emt 0:01:21]} Bxc4 {[%emt 0:00:04]} 15. Bxc4 {[%emt 0:00:19]} Qxc4 {[%emt 0:00:05]} 16. Qxd6 $2 {[%emt 0:00:48] [#]} (16. h4 $15) 16... Nxe4 $1 {[%emt 0:00:08]} 17. fxe4 {[%emt 0:09:24]} Qxe4+ {[%emt 0:00:11] Double Attack} 18. Qd3 {[%emt 0:01:28]} Qxg2 {[%emt 0:00:09]} 19. Ne2 {[%emt 0:00:15]} Qxg5 {[%emt 0:00:08]} 20. Qb3 {[%emt 0:01:34]} b6 {[%emt 0:07:03]} 21. Rhf1 {[%emt 0:00:22]} Rae8 {[%emt 0:01:38]} 22. Nc3 {[%emt 0:00:37]} Rd8 {[%emt 0:05:55]} 23. Rde1 {[%emt 0:06:46]} Rd3 {[%emt 0:05:39]} 24. Qc4 {[%emt 0:01:34]} Bxc3 {[%emt 0:00:37]} 25. bxc3 {[%emt 0:00:40]} Qb5+ {[%emt 0:00:22]} 26. Qxb5 {[%emt 0:00:07]} cxb5 {[%emt 0:00:08]} 27. Re7 {[%emt 0:00:31]} Rxc3 {[%emt 0:01:06]} 28. Rxa7 {[%emt 0:00:09]} Rc6 {[%emt 0:00:35]} 29. Rd1 {[%emt 0:00:41]} Re8 {[%emt 0:00:43]} 30. Rd5 {[%emt 0:01:25]} Re1+ {[%emt 0:00:33]} 31. Kb2 {[%emt 0:00:05]} Re2+ {[%emt 0:00:06]} 32. Kb3 {[%emt 0:00:04]} Rxh2 {[%emt 0:00:22]} 33. Rxb5 {[%emt 0:00:53]} Rh1 {[%emt 0:01:37]} 34. Kb2 {[%emt 0:00:44]} Rf1 {[%emt 0:00:41]} 35. a4 {[%emt 0:00:52]} h5 {[%emt 0:00:48]} 36. Ra6 {[%emt 0:00:17]} Rff6 {[%emt 0:00:07]} 37. Rg5 {[%emt 0:01:34]} Kg7 {[%emt 0:01:34]} 38. Kb3 {[%emt 0:00:19]} Rc1 {[%emt 0:03:37]} 39. Kb2 {[%emt 0:00:37]} Rc5 $4 {[%emt 0:00:50]} (39... Rh1 $19 {avoids the disaster.} 40. a5 bxa5) 40. Rxc5 {[%emt 0:00:21]} h4 {[%emt 0:02:00]} (40... bxc5 $2 {too greedy.} 41. Rxf6 Kxf6 42. a5 $18) 41. Rc2 $2 {[%emt 0:03:11]} ({White should play} 41. Rc1 $18) 41... g5 {[%emt 0:00:30]} 42. Rc3 {[%emt 0:05:29]} ({White should try} 42. Rg2 $14 Rg6 43. Rh2) 42... Kg6 $2 {[%emt 0:02:04]} (42... g4 $11 {and Black stays safe.} 43. Rc4 g3 44. Rxh4 g2 45. Rg4+ Rg6 46. Rxg2 Rxg2+ 47. Kc3 Rg6) 43. Rb3 $2 {[%emt 0:00:04]} (43. Ra8 $16) 43... Rf2+ $2 {[%emt 0:04:51]} (43... g4 $11 44. Rbxb6 Rxb6+ 45. Rxb6+ Kg5 46. Rb5+ f5) 44. Kc1 $2 {[%emt 0:00:03]} ({White has to play} 44. Ka3 $18 Kh5 45. Rbxb6 Rf3+ 46. Kb2) 44... g4 $1 {[%emt 0:00:20]} 45. Raxb6+ {[%emt 0:00:17]} Kg5 {[%emt 0:00:13]} 46. R3b5+ $2 {[%emt 0:00:15]} (46. a5 $11 {and White has nothing to worry.} h3 47. Rb8 Rf1+ 48. Kd2) 46... f5 {[%emt 0:00:44]} 47. Rb2 $2 {[%emt 0:00:23]} (47. Rb8 h3 48. Rg8+ Kf4 49. Rf8) 47... Rf1+ $2 {[%emt 0:00:22]} (47... g3 $19 48. Rb7 Rxb2 49. Kxb2 h3 50. Rg7+ Kf4) 48. Kc2 $2 {[%emt 0:00:04]} (48. Kd2 $11) 48... g3 {[%emt 0:00:38]} 49. a5 $2 {[%emt 0:00:40]} (49. R2b4 $17) 49... g2 {[%emt 0:00:35]} (49... h3 $142 50. Rb8 Rf2+ 51. Kc3 Rxb2 52. Kxb2 h2 53. Rg8+ Kf4) 50. Rb8 {[%emt 0:00:31] [#]} Rf2+ $2 {[%emt 0:00:54]} ({Black should try} 50... g1=Q $1 $19 {[%cal Rg1c5]} 51. Rg8+ Kh5 52. Rh8+ Kg4 53. Rg8+ Kh3 54. Rxg1 Rxg1) 51. Kc3 {[%emt 0:00:16]} Rf3+ {[%emt 0:03:43]} 52. Kb4 {[%emt 0:00:24]} h3 {[%emt 0:00:55]} ({Reject} 52... Rf4+ $6 53. Kb5 $16) 53. Rg8+ {[%emt 0:00:08]} Kf4 {[%emt 0:00:51] [#]} 54. Rbxg2 $1 {[%emt 0:00:23]} hxg2 {[%emt 0:00:25]} 55. Rxg2 {[%emt 0:00:04]} Rf1 {[%emt 0:00:10]} 56. Ra2 {[%emt 0:00:24]} Rb1+ {[%emt 0:01:34]} 57. Kc5 {[%emt 0:00:28]} Rb8 {[%emt 0:03:35]} 58. a6 {[%emt 0:00:24]} Kg3 {[%emt 0:00:08]} 59. a7 {[%emt 0:00:58]} Rc8+ {[%emt 0:00:11]} 60. Kb6 {[%emt 0:00:08]} f4 {[%emt 0:01:34]} 61. Kb7 {[%emt 0:00:13]} Re8 {[%emt 0:00:30]} 62. Rc2 {[%emt 0:00:29]} f3 {[%emt 0:00:45]} 63. a8=Q {[%emt 0:14:55]} Rxa8 {[%emt 0:00:00]} 64. Kxa8 {[%emt 0:00:00]} f2 $11 {[%emt 0:00:00]} 65. Rxf2 {[%emt 0:00:00]} 1/2-1/2

[Event "Chile-ch Women 2019"]
[Site "Santiago Las Condes"]
[Date "2019.02.16"]
[Round "8.3"]
[White "Jorquera Cabello, Valentina"]
[Black "Luna Benalcazar, Gianella"]
[Result "1-0"]
[ECO "C00"]
[WhiteElo "2016"]
[BlackElo "1804"]
[Annotator "NA RC"]
[PlyCount "75"]
[EventDate "2019.02.12"]
[EventType "swiss"]
[EventCountry "CHI"]
[SourceTitle "playchess.com"]
[Source "ChessBase"]
[SourceQuality "1"]
[TimeControl "5400+30"]

{[%evp 22,67,-37,32767,32767,-33,68,32767,32767,32767,29,18,100,32767,115,149,155,135,221,87,87,84,32767,28,24,31,43,5,23,0,86,83,159,148,331,381,769,564,512,589,699,736,757,784,776,850,882,705]} 1. e4 {[%emt 0:00:00]} e6 {[%emt 0:00:00]} 2. d3 {[%emt 0:00:00]} d5 {[%emt 0:00:03]} 3. Nd2 {[%emt 0:00:00]} Nf6 {[%emt 0:00:30]} 4. g3 {[%emt 0:00:44]} b6 {[%emt 0:00:28]} 5. Bg2 {[%emt 0:00:14]} Bb7 {[%emt 0:00:47]} 6. Qe2 {[%emt 0:05:42]} c5 {[%emt 0:00:48]} 7. Ngf3 {[%emt 0:00:51]} Be7 {[%emt 0:03:38]} 8. O-O {[%emt 0:00:31]} Nc6 {[%emt 0:00:25]} 9. Re1 {[%emt 0:01:02]} Qc7 {[%emt 0:03:03]} 10. c3 {[%emt 0:02:58]} h6 {[%emt 0:11:40]} 11. e5 {[%emt 0:05:30] C00: French: Unusual White 2nd moves} (11. h4 O-O-O 12. Nf1 dxe4 13. dxe4 Ng4 14. Bf4 Nge5 15. Rad1 Rxd1 16. Rxd1 Rd8 17. Rxd8+ Kxd8 18. Nxe5 Nxe5 19. Qh5 {½-½ (33) Andriasian,Z (2586)-Akobian,V (2640) chess.com INT 2018}) 11... Nd7 {[%emt 0:03:10]} 12. Nf1 {[%emt 0:01:41]} g5 {[%emt 0:04:28]} 13. h3 {[%emt 0:00:49]} h5 $146 {[%emt 0:03:46]} ({Black should play Predecessor:} 13... O-O-O $11 14. d4 Kb8 15. Be3 Rc8 16. a3 Na5 17. b4 cxd4 18. cxd4 Nc4 19. Rec1 {0-1 (31) Lauterbach,I (2027)-Grabuzova,T (2326) Bled 2018}) 14. Bxg5 {[%emt 0:02:04]} Bxg5 {[%emt 0:00:29]} 15. Nxg5 {[%emt 0:00:03]} Qxe5 {[%emt 0:02:41]} 16. Qd2 {[%emt 0:04:34]} Qf5 {[%emt 0:06:57]} 17. h4 {[%emt 0:05:52]} Nce5 {[%emt 0:09:59]} 18. d4 {[%emt 0:02:37]} Nc4 {[%emt 0:12:28]} 19. Qc1 {[%emt 0:00:46]} O-O-O {[%emt 0:00:33]} (19... O-O $16) 20. b3 {[%emt 0:00:24]} (20. Ne3 $18 {and White stays clearly on top.} Qg6 21. Nxc4 dxc4 22. Qf4) 20... Nd6 {[%emt 0:00:46]} 21. Bh3 {[%emt 0:05:47]} Qf6 {[%emt 0:00:17]} 22. b4 {[%emt 0:00:55]} cxd4 {[%emt 0:02:10]} 23. cxd4+ {[%emt 0:00:07]} Kb8 {[%emt 0:02:20]} 24. Qe3 {[%emt 0:08:26]} Rc8 {[%emt 0:03:34]} 25. Nd2 {[%emt 0:20:09]} Nc4 {[%emt 0:06:02]} (25... Nb5 $11 {keeps the balance.} 26. Ndf3 Rc3) 26. Nxc4 {[%emt 0:05:42]} Rxc4 {[%emt 0:00:11] [#]} (26... dxc4 $142 27. Ne4 Qe7) 27. Nxf7 $1 {[%emt 0:04:14]} Rg8 $2 {[%emt 0:06:18]} (27... Qxf7 {was called for.} 28. Bxe6 Qf6) 28. Qxe6 {[%emt 0:03:38]} Qxd4 $2 {[%emt 0:05:42]} (28... Qxe6 29. Rxe6 Rxd4) 29. Qxd7 {[%emt 0:01:46]} Rxg3+ {[%emt 0:00:33]} 30. Bg2 {[%emt 0:01:29]} Rxg2+ {[%emt 0:03:59]} 31. Kxg2 {[%emt 0:00:01]} Qg7+ {[%emt 0:00:46]} 32. Kf1 {[%emt 0:00:16]} Rc7 {[%emt 0:01:38]} 33. Qe8+ {[%emt 0:12:54]} Bc8 {[%emt 0:00:09]} 34. Ng5 $18 {[%emt 0:02:45]} Qd4 {[%emt 0:06:42]} 35. Rac1 {[%emt 0:00:22]} Qxh4 {[%emt 0:00:00]} 36. Rxc7 {[%emt 0:00:09]} Kxc7 {[%emt 0:00:00]} 37. Rc1+ {[%emt 0:00:14]} Kd6 {[%emt 0:00:00]} 38. Rc6# {[%emt 0:00:12]} 1-0

[Event "Chile-ch Women 2019"]
[Site "Santiago Las Condes"]
[Date "2019.02.16"]
[Round "8.4"]
[White "Urrutia Cordova, Camila"]
[Black "Sanchez Tobar, Francisca Valenti"]
[Result "0-1"]
[ECO "C60"]
[WhiteElo "1694"]
[BlackElo "1817"]
[Annotator "NA RC"]
[PlyCount "66"]
[EventDate "2019.02.12"]
[EventType "swiss"]
[EventCountry "CHI"]
[SourceTitle "playchess.com"]
[Source "ChessBase"]
[SourceQuality "1"]
[TimeControl "5400+30"]

{[%evp 20,66,40,-15,-24,-24,0,0,0,0,1,-12,1,-9,18,22,23,32767,35,33,205,97,79,5,122,62,52,64,79,68,488,53,104,85,225,224,252,249,736,-518,-570,-650,-698,-1036,-1132,-1270,-639,-29988,-29989]} 1. e4 {[%emt 0:00:00]} e5 {[%emt 0:01:29]} 2. Nf3 {[%emt 0:00:00]} Nc6 {[%emt 0:00:07]} 3. Bb5 {[%emt 0:00:00]} g6 {[%emt 0:00:32]} 4. c3 {[%emt 0:01:01]} Bg7 {[%emt 0:03:33]} 5. O-O {[%emt 0:00:39]} Nge7 {[%emt 0:03:12]} 6. d4 {[%emt 0:03:23]} exd4 {[%emt 0:20:21]} 7. cxd4 {[%emt 0:00:06]} d5 {[%emt 0:01:15]} 8. exd5 {[%emt 0:02:08]} Nxd5 {[%emt 0:12:03]} 9. Re1+ {[%emt 0:01:30]} Be6 {[%emt 0:00:24]} 10. Ng5 {[%emt 0:13:08] C60: Ruy Lopez: Unusual Black 3rd moves and 3...g6} Qd7 $146 {[%emt 0:09:13]} ({Predecessor:} 10... O-O 11. Bxc6 bxc6 12. Nxe6 fxe6 13. Nc3 Qf6 14. Be3 Nxe3 15. fxe3 Qf2+ 16. Kh1 Qxb2 17. Qc1 Qxc1 18. Raxc1 {0-1 (65) Bogut,Z (2467)-Stevic,H (2617) Stari Mikanovci 2009}) 11. Qg4 {[%emt 0:16:14]} O-O {[%emt 0:02:51]} 12. Nxe6 {[%emt 0:00:07]} fxe6 {[%emt 0:00:02]} 13. Nc3 {[%emt 0:01:37]} Qf7 {[%emt 0:13:47]} 14. Be3 $1 {[%emt 0:04:24]} Ncb4 {[%emt 0:06:20]} 15. Re2 {[%emt 0:03:43]} c6 {[%emt 0:09:55]} 16. Bc4 {[%emt 0:01:05]} b5 {[%emt 0:01:51]} 17. Bb3 {[%emt 0:02:56]} Rae8 {[%emt 0:01:46]} 18. Ne4 {[%emt 0:04:34]} Qf5 {[%emt 0:04:36]} 19. Qh4 {[%emt 0:00:48]} Rd8 $2 {[%emt 0:00:25]} (19... Nxe3 $14 20. Rxe3 (20. fxe3 g5 $14) 20... Nd5 21. Bxd5 Qxd5) 20. Ng3 {[%emt 0:04:42]} (20. Bg5 $18 Nf4 21. Qxf4 (21. Bxd8 Nxe2+ 22. Kf1 Nxd4 $15) 21... Qxf4 22. Bxf4 (22. Bxe6+ Kh8 $16) 22... Rxf4 23. Ng5 (23. Bxe6+ Kh8 $16)) 20... Qf7 {[%emt 0:00:59]} 21. a3 {[%emt 0:03:07]} ({White should play} 21. Bg5 $16 Rb8 22. Rd1) 21... Na6 {[%emt 0:01:18]} (21... Nd3 $11 {keeps the balance.}) 22. Qe4 {[%emt 0:00:33]} ({White should try} 22. Ne4 $16) 22... Nac7 {[%emt 0:00:20]} 23. Bg5 {[%emt 0:02:40]} Rde8 {[%emt 0:00:19]} 24. Rc1 {[%emt 0:00:38]} e5 $2 {[%emt 0:00:48]} ({Black should play} 24... Qd7 $14) 25. Qd3 $2 {[%emt 0:03:21]} ({White has to play} 25. Rxc6 $18 Kh8 {[#]} 26. Rxc7 $1 {[%mdl 576] Deflection} Qxc7 27. Bxd5) 25... Qd7 {[%emt 0:02:22]} 26. dxe5 {[%emt 0:01:02]} Bxe5 $2 {[%emt 0:00:36] [#]} ({Black should try} 26... Rxe5 $14 27. Rxe5 Bxe5) 27. Rec2 $1 {[%emt 0:01:20]} Re6 {[%emt 0:01:07]} 28. Ne4 {[%emt 0:04:04]} Na6 $2 {[%emt 0:00:07] [#]} (28... Bd6 29. Rxc6 Bxh2+ 30. Kxh2 Rxc6) 29. Nc3 $4 {[%emt 0:04:29]} (29. Rxc6 $1 $18 {[%mdl 512] and all is fine.} Rxc6 (29... Qxc6 30. Rxc6) 30. Qxd5+ Qxd5 31. Bxd5+ Kh8 32. Rxc6) 29... Nc5 {[%emt 0:01:05] Double Attack} 30. Qh3 {[%emt 0:02:54]} Nxb3 {[%emt 0:00:12]} 31. Rd1 {[%emt 0:04:39]} Bxc3 {[%emt 0:00:44]} 32. bxc3 {[%emt 0:00:30]} Rfe8 {[%emt 0:00:12]} 33. Kf1 {[%emt 0:03:00] [#]} Ne3+ {[%emt 0:01:20] Discovered Attack} 0-1